fUSD/lending_fUSD_20260401
["ID","MTS","AMOUNT","RATE_DAILY","PERIOD"]
[419244443,1775038241421,-246.2296,0.000151,12]
[419244444,1775038241430,-1000.0,0.00015121,2]
[419244445,1775038241438,-200.0,0.00015123,2]
[419244446,1775038241447,-200.0,0.00015123,2]
[419244447,1775038241456,-200.0,0.00015123,2]
[419244448,1775038241465,-200.0,0.00015123,2]
[419244449,1775038241475,-23249.6358348,0.00015169,2]
[419244450,1775038241488,-5534.0,0.000152,5]
[419244451,1775038241497,-10000.0,0.00015205,2]
[419244452,1775038241507,-162.80706735,0.00015219,2]
[419244453,1775038241516,-200.0,0.00015274,2]
[419244454,1775038241526,-200.0,0.00015274,2]
[419244455,1775038241535,-200.0,0.00015274,2]
[419244456,1775038241545,-7433.71578473,0.00015373,2]
[419244457,1775038241554,-200.0,0.00015427,2]
[419244458,1775038241564,-200.0,0.00015427,2]
[419244459,1775038241574,-597.35,0.00015471,2]
[419244460,1775038241583,-7285.85,0.00015471,2]
[419244461,1775038241592,-1394.77,0.00015471,2]
[419244462,1775038241602,-3674.27,0.00015471,2]
[419244463,1775038241611,-9340.04,0.00015471,2]
[419244464,1775038241621,-170.23,0.00015501,2]
[419244465,1775038241630,-667.13,0.00015507,2]
[419244466,1775038241640,-200.0,0.00015581,2]
[419244467,1775038241650,-505.0,0.00015588,4]
[419244468,1775038241659,-1500.0,0.00015668,2]
[419244469,1775038241668,-242.060488,0.0001568,7]
[419244470,1775038241678,-160.0,0.0001568,7]
[419244471,1775038241687,-203.743245,0.0001568,7]
[419244472,1775038241698,-247.486491,0.0001568,7]
[419244473,1775038241707,-187.780257,0.0001568,7]
[419244474,1775038241717,-160.0,0.0001568,7]
[419244475,1775038241727,-441.717502,0.0001568,7]
[419244476,1775038241736,-196.334401,0.0001568,7]
[419244477,1775038241746,-723.435004,0.0001568,7]
[419244478,1775038241755,-160.0,0.0001568,7]
[419244479,1775038241766,-248.025582,0.0001568,7]
[419244480,1775038241776,-336.051165,0.0001568,7]
[419244481,1775038241785,-160.0,0.0001568,7]
[419244482,1775038241794,-465.44278,0.0001568,7]
[419244483,1775038241803,-770.88556,0.0001568,7]
[419244484,1775038241813,-158.12461936,0.00015716,2]
[419244485,1775038241822,-1908.72,0.00015753,2]
[419244486,1775038241831,-12612.0,0.00015776,2]
[419244487,1775038241840,-500.0,0.0001589,2]
[419244488,1775038241850,-156.78867168,0.0001589,2]
[419244489,1775038241859,-500.0,0.0001589,2]
[419244490,1775038241868,-330.83967565,0.0001589,2]
[419244491,1775038241877,-500.0,0.0001589,2]
[419244492,1775038241886,-500.0,0.0001589,2]
[419244493,1775038241895,-500.0,0.0001589,2]
[419244494,1775038241904,-500.0,0.0001589,2]
[419244495,1775038241913,-500.0,0.0001589,2]
[419244496,1775038241922,-500.0,0.0001589,2]
[419244497,1775038241932,-500.0,0.0001589,2]
[419244498,1775038241941,-500.0,0.0001589,2]
[419244499,1775038241950,-500.0,0.0001589,2]
[419244500,1775038241958,-500.0,0.0001589,2]
[419244501,1775038241968,-500.0,0.0001589,2]
[419244502,1775038241977,-500.0,0.0001589,2]
[419244503,1775038241986,-500.0,0.0001589,2]
[419244504,1775038241995,-500.0,0.0001589,2]
[419244505,1775038242004,-192.86328768,0.0001589,2]
[419244506,1775038242014,-500.0,0.0001589,2]
[419244507,1775038242023,-500.0,0.0001589,2]
[419244508,1775038242033,-500.0,0.0001589,2]
[419244509,1775038242043,-156.13980161,0.0001589,2]
[419244510,1775038242052,-150.0,0.0001589,2]
[419244511,1775038242062,-150.0,0.0001589,2]
[419244512,1775038242071,-150.0,0.0001589,2]
[419244513,1775038242082,-178.86340843,0.0001589,2]
[419244514,1775038242091,-500.0,0.0001589,2]
[419244515,1775038242100,-500.0,0.0001589,2]
[419244516,1775038242109,-500.0,0.0001589,2]
[419244517,1775038242118,-500.0,0.0001589,2]
[419244518,1775038242128,-500.0,0.0001589,2]
[419244519,1775038242138,-500.0,0.0001589,2]
[419244520,1775038242148,-626.71602316,0.0001589,2]
[419244521,1775038242158,-250.0,0.0001589,2]
[419244522,1775038242167,-250.0,0.0001589,2]
[419244523,1775038242178,-358.45,0.0001589,2]
[419244524,1775038242187,-667.13,0.00015895,2]
[419244525,1775038242196,-150.0,0.000159,2]
[419244526,1775038242205,-150.0,0.000159,2]
[419244527,1775038242215,-173.3840015,0.000159,2]
[419244528,1775038242224,-150.71162126,0.000159,2]
[419244529,1775038242234,-160.0,0.00015928,2]
[419244530,1775038242245,-160.0,0.00015928,2]
[419244531,1775038242254,-682.35074179,0.00015988,2]
[419244532,1775038242263,-269.04475954,0.0001599,2]
[419244533,1775038242272,-269.04475954,0.0001599,2]
[419244534,1775038242282,-2319744.72205933,0.00016,2]
[419244535,1775038242324,-354.3,0.00016,2]
[419244536,1775038242339,-527.67643239,0.00016,2]
[419244537,1775038242458,-779.84479963,0.00016,2]
[419244538,1775038242477,-1327.981104,0.00016,2]
[419244546,1775038244294,-621.0,0.00016,2]
[419244547,1775038244342,-2679.1928373,0.00016,2]
[419244553,1775038294338,2239.94359379,8.926e-05,2]
[419244554,1775038294379,246.08673259,8.926e-05,2]
[419244555,1775038294728,220.49808441,8.926e-05,2]
[419244556,1775038294767,497.95191559,8.926e-05,2]
[419244563,1775038535770,3619.68,4.463e-05,2]
[419244564,1775038536073,3619.68,4.698e-05,2]
[419244565,1775038536260,2760.65,4.933e-05,2]
[419244566,1775038536284,859.03,4.933e-05,2]
[419244567,1775038536462,3619.68,5.167e-05,2]
[419244568,1775038536660,3619.68,5.402e-05,2]
[419244569,1775038537064,1901.62,5.637e-05,2]
[419244570,1775038537088,1718.06,5.637e-05,2]
[419244571,1775038537262,3619.68,5.872e-05,2]
[419244572,1775038537449,3619.68,6.107e-05,2]
[419244573,1775038537640,1042.59,6.342e-05,2]
[419244574,1775038537662,2577.09,6.342e-05,2]
[419244575,1775038537828,3619.68,6.577e-05,2]
[419244576,1775038538026,3619.68,6.812e-05,2]
[419244577,1775038538425,183.56,7.046e-05,2]
[419244578,1775038538448,3436.12,7.046e-05,2]
[419244579,1775038538618,3619.68,7.281e-05,2]
[419244580,1775038538815,2944.21,7.516e-05,2]
[419244581,1775038538838,675.47,7.516e-05,2]
[419244582,1775038539001,3619.68,7.751e-05,2]
[419244583,1775038539201,3619.68,7.986e-05,2]
[419244588,1775038669678,-1980.0,8.221e-05,2]
[419244594,1775038916683,-1639.68,8.221e-05,2]
[419244595,1775038916713,-250.0,8.249e-05,2]
[419244596,1775038916742,-250.0,8.267e-05,2]
[419244597,1775038916772,-300.0,8.277e-05,2]
[419244598,1775038916804,-963.0,8.278e-05,2]
[419244599,1775038916837,-300.0,8.278e-05,2]
[419244600,1775038916868,-1200.0,8.278e-05,2]
[419244601,1775038928782,-300.0,8.278e-05,2]
[419244602,1775038928812,-250.0,8.279e-05,2]
[419244603,1775038928840,-209.70219693,8.279e-05,2]
[419244604,1775038933677,-1519.40439386,8.279e-05,2]
[419244605,1775038936442,-3038.80878772,8.279e-05,2]
[419244606,1775038939880,-3922.39242456,8.279e-05,2]
[419244607,1775038939912,-300.0,8.279e-05,2]
[419244615,1775039431974,-3267.90769011,8.456e-05,2]
[419244616,1775039431985,-351.77230989,8.456e-05,2]
[419244617,1775039431995,-5000.0,8.573e-05,2]
[419244618,1775039432004,-849.0,8.69e-05,2]
[419244619,1775039432014,-3619.68,8.691e-05,2]
[419244620,1775039432023,-300.0,8.824e-05,2]
[419244638,1775039432033,-500.0,8.825e-05,2]
[419244643,1775039432453,-1976.7443,8.825e-05,2]
[419244644,1775039432463,-3619.68,8.925e-05,2]
[419244646,1775039432472,-1161.19967362,8.926e-05,2]
[419244648,1775039432482,-3205.98,8.926e-05,2]
[419244650,1775039432491,-7205.09,8.926e-05,2]
[419244652,1775039432500,-150.0,8.999e-05,2]
[419244654,1775039432510,-150.0,9e-05,2]
[419244656,1775039432519,-47049.75289177,9e-05,2]
[419244668,1775039433683,-416.795655,9e-05,2]
[419244669,1775039433708,-345.51780687,9e-05,2]
[419244670,1775039433810,-10210.96282443,9e-05,2]
[419244671,1775039433821,-2065.36219313,9e-05,2]
[419244678,1775039438080,-1972.47433753,9e-05,2]
[419244679,1775039438096,-731.35862587,9e-05,2]
[419244680,1775039438108,-500.11158172,9e-05,2]
[419244681,1775039438275,-1058.806807,9e-05,2]
[419244682,1775039438310,-406.64844757,9e-05,2]
[419244683,1775039438371,-4349.7,9e-05,2]
[419244684,1775039438383,-328.59998805,9e-05,2]
[419244689,1775039440963,-463.17396815,9e-05,2]
[419244690,1775039441019,-279.89771197,9e-05,2]
[419244691,1775039441134,-22527.95612039,9e-05,2]
[419244692,1775039441144,-250.0,9.301e-05,2]
[419244693,1775039441154,-5000.0,9.301e-05,2]
[419244694,1775039441164,-250.0,9.301e-05,2]
[419244695,1775039441174,-250.0,9.301e-05,2]
[419244696,1775039441184,-5000.0,9.301e-05,2]
[419244697,1775039441195,-1600.0,9.417e-05,2]
[419244698,1775039441204,-420.0,9.707e-05,2]
[419244699,1775039441215,-2000.0,9.735e-05,2]
[419244700,1775039441225,-1464.6053,9.813e-05,2]
[419244701,1775039441235,-566.83,9.912e-05,2]
[419244702,1775039441245,-527.29177781,9.912e-05,2]
[419244703,1775039441254,-527.29177781,9.912e-05,2]
[419244704,1775039441264,-527.29177781,9.912e-05,2]
[419244705,1775039441274,-527.29177781,9.912e-05,2]
[419244706,1775039441284,-527.29177781,9.912e-05,2]
[419244707,1775039441294,-527.29177781,9.912e-05,2]
[419244708,1775039441304,-527.29177781,9.912e-05,2]
[419244709,1775039441314,-527.29177781,9.912e-05,2]
[419244710,1775039441324,-527.29177781,9.912e-05,2]
[419244711,1775039441333,-527.29177781,9.912e-05,2]
[419244712,1775039441343,-527.29177781,9.912e-05,2]
[419244713,1775039441353,-527.29177781,9.912e-05,2]
[419244714,1775039441363,-527.29177781,9.912e-05,2]
[419244715,1775039441372,-527.29177781,9.912e-05,2]
[419244716,1775039441382,-527.29177781,9.912e-05,2]
[419244717,1775039441392,-527.29177781,9.912e-05,2]
[419244718,1775039441402,-527.29177781,9.912e-05,2]
[419244719,1775039441411,-527.29177781,9.912e-05,2]
[419244720,1775039441423,-527.29177781,9.912e-05,2]
[419244721,1775039441432,-527.29177781,9.912e-05,2]
[419244722,1775039441442,-527.29177781,9.912e-05,2]
[419244723,1775039441452,-527.29177781,9.912e-05,2]
[419244724,1775039441461,-527.29177781,9.912e-05,2]
[419244725,1775039441471,-527.29177781,9.912e-05,2]
[419244726,1775039441480,-527.29177781,9.912e-05,2]
[419244727,1775039441490,-527.29177781,9.912e-05,2]
[419244728,1775039441500,-527.29177781,9.912e-05,2]
[419244729,1775039441510,-527.29177781,9.912e-05,2]
[419244730,1775039441520,-527.29177781,9.912e-05,2]
[419244731,1775039441530,-527.29177781,9.912e-05,2]
[419244732,1775039441540,-527.29177781,9.912e-05,2]
[419244733,1775039441550,-527.29177781,9.912e-05,2]
[419244734,1775039441561,-527.29177781,9.912e-05,2]
[419244735,1775039441571,-527.29177781,9.912e-05,2]
[419244736,1775039441581,-527.29177781,9.912e-05,2]
[419244737,1775039441592,-527.29177781,9.912e-05,2]
[419244738,1775039441603,-527.29177781,9.912e-05,2]
[419244739,1775039441613,-527.29177781,9.912e-05,2]
[419244740,1775039441622,-527.29177781,9.912e-05,2]
[419244741,1775039441632,-527.29177781,9.912e-05,2]
[419244742,1775039441642,-527.29177781,9.912e-05,2]
[419244743,1775039441651,-527.29177781,9.912e-05,2]
[419244744,1775039441661,-527.29177781,9.912e-05,2]
[419244745,1775039441670,-527.29177781,9.912e-05,2]
[419244746,1775039441679,-527.29177781,9.912e-05,2]
[419244747,1775039441691,-527.29177781,9.912e-05,2]
[419244748,1775039441701,-527.29177781,9.912e-05,2]
[419244749,1775039441712,-527.29177781,9.912e-05,2]
[419244750,1775039441722,-527.29177781,9.912e-05,2]
[419244751,1775039441734,-527.29177781,9.912e-05,2]
[419244752,1775039441743,-527.2917778,9.912e-05,2]
[419244753,1775039441755,-527.2917778,9.912e-05,2]
[419244754,1775039441767,-527.2917778,9.912e-05,2]
[419244755,1775039441777,-527.2917778,9.912e-05,2]
[419244756,1775039441788,-527.2917778,9.912e-05,2]
[419244757,1775039441797,-527.2917778,9.912e-05,2]
[419244758,1775039441807,-527.2917778,9.912e-05,2]
[419244759,1775039441817,-527.2917778,9.912e-05,2]
[419244760,1775039441828,-527.2917778,9.912e-05,2]
[419244761,1775039441837,-527.2917778,9.912e-05,2]
[419244762,1775039441847,-527.2917778,9.912e-05,2]
[419244763,1775039441857,-527.2917778,9.912e-05,2]
[419244764,1775039441868,-527.2917778,9.912e-05,2]
[419244765,1775039441881,-527.2917778,9.912e-05,2]
[419244766,1775039441892,-527.2917778,9.912e-05,2]
[419244767,1775039441902,-527.2917778,9.912e-05,2]
[419244768,1775039441913,-527.2917778,9.912e-05,2]
[419244769,1775039441923,-527.2917778,9.912e-05,2]
[419244770,1775039441933,-527.2917778,9.912e-05,2]
[419244771,1775039441945,-527.2917778,9.912e-05,2]
[419244772,1775039441956,-527.2917778,9.912e-05,2]
[419244773,1775039441966,-527.2917778,9.912e-05,2]
[419244774,1775039441977,-527.2917778,9.912e-05,2]
[419244775,1775039441988,-527.2917778,9.912e-05,2]
[419244776,1775039441998,-527.2917778,9.912e-05,2]
[419244777,1775039442008,-527.2917778,9.912e-05,2]
[419244778,1775039442018,-522.01886002,9.912e-05,2]
[419244779,1775039442028,-522.01886002,9.912e-05,2]
[419244780,1775039442038,-522.01886002,9.912e-05,2]
[419244781,1775039442048,-522.01886002,9.912e-05,2]
[419244782,1775039442058,-522.01886002,9.912e-05,2]
[419244783,1775039442069,-522.01886002,9.912e-05,2]
[419244784,1775039442079,-522.01886002,9.912e-05,2]
[419244785,1775039442089,-522.01886002,9.912e-05,2]
[419244786,1775039442099,-522.01886002,9.912e-05,2]
[419244787,1775039442108,-522.01886002,9.912e-05,2]
[419244788,1775039442118,-84468.64,9.913e-05,2]
[419244789,1775039442129,-500.0,0.0001,2]
[419244790,1775039442140,-500.0,0.0001,2]
[419244791,1775039442150,-500.0,0.0001,2]
[419244792,1775039442160,-500.0,0.0001,2]
[419244793,1775039442170,-500.0,0.0001,2]
[419244794,1775039442180,-518.8745232,0.0001,2]
[419244795,1775039442191,-500.0,0.0001,2]
[419244796,1775039442201,-500.0,0.0001,2]
[419244797,1775039442211,-254.87611091,0.0001,2]
[419244798,1775039442220,-151.0,0.0001,2]
[419244799,1775039442231,-151.0,0.0001,2]
[419244800,1775039442242,-151.0,0.0001,2]
[419244801,1775039442252,-151.0,0.0001,2]
[419244802,1775039442262,-151.0,0.0001,2]
[419244803,1775039442271,-151.0,0.0001,2]
[419244804,1775039442281,-151.0,0.0001,2]
[419244805,1775039442291,-151.0,0.0001,2]
[419244806,1775039442301,-151.0,0.0001,2]
[419244807,1775039442310,-151.0,0.0001,2]
[419244808,1775039442319,-151.0,0.0001,2]
[419244809,1775039442329,-151.0,0.0001,2]
[419244810,1775039442338,-151.0,0.0001,2]
[419244811,1775039442347,-566.83,0.00010186,2]
[419244812,1775039442356,-192.2185,0.000104,7]
[419244813,1775039442366,-566.83,0.0001046,2]
[419244814,1775039442376,-1600.0,0.00010594,2]
[419244815,1775039442385,-587.0,0.00010678,2]
[419244816,1775039442395,-566.83,0.00010734,2]
[419244817,1775039442404,-500.0,0.00010821,2]
[419244818,1775039442414,-2000.0,0.00010952,2]
[419244819,1775039442424,-500.0,0.00010959,2]
[419244820,1775039442433,-566.87,0.00011008,2]
[419244821,1775039442443,-8779.63355972,0.00011099,2]
[419244822,1775039442453,-8779.63355972,0.00011099,2]
[419244823,1775039442464,-250.0,0.00011173,2]
[419244824,1775039442473,-2500.0,0.000112,2]
[419244825,1775039442483,-1441.76089221,0.00011209,2]
[419244826,1775039442492,-9547.89969275,0.00011209,2]
[419244827,1775039442502,-328.1522971,0.00011209,2]
[419244828,1775039442512,-8779.63355972,0.00011233,2]
[419244829,1775039442521,-500.0,0.00011308,2]
[419244830,1775039442531,-264.96410001,0.00011308,2]
[419244831,1775039442540,-500.0,0.00011308,2]
[419244832,1775039442550,-500.0,0.00011308,2]
[419244833,1775039442560,-443.81466155,0.00011308,2]
[419244834,1775039442570,-1000.0,0.00011309,2]
[419244835,1775039442580,-500.0,0.00011373,2]
[419244836,1775039442589,-4693.82,0.00011507,2]
[419244837,1775039442599,-823.0,0.00011745,2]
[419244838,1775039442609,-1600.0,0.00011771,2]
[419244839,1775039442618,-246.3198,0.000118,12]
[419244840,1775039442628,-8779.63355972,0.000119,2]
[419244841,1775039442637,-500.0,0.00011921,2]
[419244842,1775039442646,-5778.53,0.00012087,2]
[419244843,1775039442656,-349.56,0.00012087,2]
[419244844,1775039442665,-2000.0,0.00012169,2]
[419244845,1775039442675,-9230.41,0.00012212,2]
[419244846,1775039442684,-3205.98,0.00012496,2]
[419244847,1775039442694,-8779.63355972,0.00012567,2]
[419244848,1775039442703,-1152.0,0.0001292,2]
[419244849,1775039442712,-1600.0,0.00012948,2]
[419244850,1775039442723,-250.0,0.00013,2]
[419244851,1775039442732,-505.0,0.00013111,2]
[419244852,1775039442742,-500.0,0.00013233,2]
[419244853,1775039442751,-8779.63355972,0.00013233,2]
[419244854,1775039442760,-315.6482,0.000133,17]
[419244855,1775039442770,-2000.0,0.00013386,2]
[419244856,1775039442780,-328.15229709,0.00013555,2]
[419244857,1775039442789,-500.0,0.00013698,2]
[419244858,1775039442799,-500.0,0.00013698,2]
[419244859,1775039442808,-330.62596809,0.00013699,2]
[419244860,1775039442818,-581.59764904,0.00013699,2]
[419244862,1775039442828,-221.45,0.000137,2]
[419244863,1775039442837,-267.32836993,0.00014002,2]
[419244864,1775039442847,-1600.0,0.00014125,2]
[419244865,1775039442859,-1613.0,0.00014212,2]
[419244866,1775039442868,-9547.89969268,0.00014308,2]
[419244867,1775039442878,-150.0,0.000144,2]
[419244868,1775039442888,-150.0,0.000144,2]
[419244869,1775039442898,-150.0,0.000144,2]
[419244870,1775039442909,-150.0,0.000144,2]
[419244871,1775039442921,-150.0,0.000144,2]
[419244872,1775039442931,-150.0,0.000144,2]
[419244873,1775039442939,-150.0,0.000144,2]
[419244874,1775039442949,-150.01563451,0.000144,2]
[419244875,1775039442958,-150.0,0.000144,2]
[419244876,1775039442968,-150.22908623,0.000144,2]
[419244877,1775039442978,-150.0,0.000144,2]
[419244878,1775039442987,-221.45,0.0001449,2]
[419244879,1775039442996,-2000.0,0.000145,2]
[419244880,1775039443006,-2000.0,0.000145,2]
[419244881,1775039443016,-405.0,0.00014521,2]
[419244882,1775039443025,-150.0,0.0001456,2]
[419244883,1775039443035,-315.82432011,0.00014576,2]
[419244884,1775039443045,-2000.0,0.00014603,2]
[419244885,1775039443054,-150.0,0.00014667,2]
[419244886,1775039443064,-150.0,0.00014667,2]
[419244887,1775039443074,-150.0,0.00014667,2]
[419244888,1775039443084,-404.4896,0.000147,22]
[419244889,1775039443094,-2000.0,0.000147,2]
[419244890,1775039443104,-150.0,0.0001472,2]
[419244891,1775039443114,-150.0,0.0001472,2]
[419244893,1775039443124,-150.0,0.0001472,2]
[419244895,1775039443134,-185.00243847,0.00014753,2]
[419244896,1775039443144,-150.0,0.000148,2]
[419244897,1775039443153,-150.0,0.000148,2]
[419244898,1775039443163,-252.19077803,0.00014877,2]
[419244899,1775039443173,-150.0,0.0001488,2]
[419244900,1775039443183,-2000.0,0.000149,2]
[419244901,1775039443192,-224.50747791,0.0001492,2]
[419244902,1775039443202,-150.0,0.00014933,2]
[419244903,1775039443212,-150.0,0.00014933,2]
[419244904,1775039443222,-150.0,0.00014933,2]
[419244905,1775039443232,-170.1017198,0.00014951,2]
[419244906,1775039443242,-300.0,0.00015,2]
[419244907,1775039443252,-10000.0,0.00015,15]
[419244908,1775039443261,-10000.0,0.00015,15]
[419244909,1775039443271,-10000.0,0.00015,15]
[419244910,1775039443280,-2069.0,0.00015,15]
[419244911,1775039443290,-160.0,0.00015,2]
[419244912,1775039443300,-345.05841563,0.00015012,2]
[419244913,1775039443309,-150.0,0.0001504,2]
[419244914,1775039443319,-150.0,0.0001504,2]
[419244915,1775039443329,-150.0,0.0001504,2]
[419244916,1775039443339,-504.71699093,0.00015063,2]
[419244917,1775039443349,-160.0,0.00015071,7]
[419244918,1775039443358,-401.779433,0.00015071,7]
[419244919,1775039443368,-643.558866,0.00015071,7]
[419244920,1775039443377,-209.687846,0.00015071,7]
[419244921,1775039443387,-252.36250553,0.0001513,2]
[419244922,1775039443396,-505.39846688,0.00015189,2]
[419244923,1775039443405,-150.0,0.000152,2]
[419244924,1775039443415,-150.0,0.000152,2]
[419244925,1775039443424,-150.0,0.000152,2]
[419244926,1775039443433,-150.0,0.000152,2]
[419244927,1775039443443,-150.0,0.000152,2]
[419244928,1775039443452,-150.0,0.000152,2]
[419244929,1775039443462,-150.0,0.000152,2]
[419244930,1775039443471,-341.17537089,0.00015223,2]
[419244931,1775039443481,-785.2,0.00015223,2]
[419244932,1775039443490,-439.93553161,0.00015233,2]
[419244933,1775039443500,-500.0,0.00015267,2]
[419244934,1775039443509,-160.0,0.00015334,7]
[419244935,1775039443519,-1416.901269,0.00015334,7]
[419244936,1775039443528,-2673.802538,0.00015334,7]
[419244937,1775039443538,-177.79392239,0.00015343,2]
[419244938,1775039443547,-150.0,0.0001536,2]
[419244939,1775039443556,-150.0,0.0001536,2]
[419244940,1775039443566,-150.0,0.0001536,2]
[419244941,1775039443575,-150.0,0.00015467,2]
[419244942,1775039443584,-150.0,0.00015467,2]
[419244943,1775039443594,-150.0,0.00015467,2]
[419244944,1775039443604,-701.66,0.00015497,2]
[419244945,1775039443613,-150.0,0.0001552,2]
[419244946,1775039443623,-162.666935,0.00015572,7]
[419244947,1775039443632,-346.90894,0.00015572,7]
[419244948,1775039443641,-150.0,0.000156,2]
[419244949,1775039443651,-150.0,0.000156,2]
[419244950,1775039443660,-2258.0,0.00015633,2]
[419244951,1775039443669,-221.45,0.00015637,2]
[419244952,1775039443679,-14877.74,0.00015647,2]
[419244953,1775039443689,-150.0,0.0001568,2]
[419244954,1775039443698,-150.0,0.0001568,2]
[419244955,1775039443708,-150.0,0.0001568,2]
[419244956,1775039443717,-1127.65182402,0.0001568,2]
[419244957,1775039443726,-1001.94930082,0.0001568,2]
[419244958,1775039443736,-1002.25630073,0.0001568,2]
[419244959,1775039443745,-1104.33006125,0.0001568,2]
[419244960,1775039443755,-1131.64273626,0.0001568,2]
[419244961,1775039443764,-1071.66155309,0.0001568,2]
[419244962,1775039443774,-1085.09059658,0.0001568,2]
[419244963,1775039443783,-1103.84129234,0.0001568,2]
[419244964,1775039443793,-1061.86490758,0.0001568,2]
[419244966,1775039443802,-1138.26525175,0.0001568,2]
[419244967,1775039443812,-1548.19669012,0.0001568,2]
[419244968,1775039443821,-1061.48538765,0.0001568,2]
[419244969,1775039443831,-1030.92228112,0.0001568,2]
[419244970,1775039443840,-1134.07140717,0.0001568,2]
[419244971,1775039443850,-1147.58111431,0.0001568,2]
[419244973,1775039443860,-1034.44661675,0.0001568,2]
[419244975,1775039443869,-743.07168012,0.0001568,2]
[419244976,1775039443879,-150.0,0.00015733,2]
[419244977,1775039443889,-150.0,0.00015733,2]
[419244978,1775039443898,-150.0,0.00015733,2]
[419244979,1775039443908,-505.0,0.00015787,4]
[419244980,1775039443918,-547.881045,0.00015825,7]
[419244982,1775039443928,-150.0,0.0001584,2]
[419244983,1775039443937,-160.0,0.00015847,2]
[419244984,1775039443947,-160.0,0.00015847,2]
[419244985,1775039443957,-500.0,0.0001589,2]
[419244986,1775039443966,-500.0,0.0001589,2]
[419244987,1775039443975,-500.0,0.0001589,2]
[419244988,1775039443985,-500.0,0.0001589,2]
[419244989,1775039443995,-626.71602316,0.0001589,2]
[419244990,1775039444006,-925.0,0.0001589,2]
[419244991,1775039444017,-925.0,0.0001589,2]
[419244992,1775039444028,-925.0,0.0001589,2]
[419244993,1775039444038,-925.0,0.0001589,2]
[419244994,1775039444047,-925.0,0.0001589,2]
[419244995,1775039444057,-925.0,0.0001589,2]
[419244996,1775039444067,-925.0,0.0001589,2]
[419244997,1775039444076,-925.0,0.0001589,2]
[419244998,1775039444087,-925.0,0.0001589,2]
[419244999,1775039444096,-925.0,0.0001589,2]
[419245000,1775039444106,-925.0,0.0001589,2]
[419245001,1775039444116,-925.0,0.0001589,2]
[419245002,1775039444126,-925.0,0.0001589,2]
[419245003,1775039444135,-925.0,0.0001589,2]
[419245004,1775039444145,-925.0,0.0001589,2]
[419245005,1775039444154,-925.0,0.0001589,2]
[419245006,1775039444164,-925.0,0.0001589,2]
[419245007,1775039444173,-925.0,0.0001589,2]
[419245008,1775039444183,-925.0,0.0001589,2]
[419245009,1775039444193,-925.0,0.0001589,2]
[419245010,1775039444202,-925.0,0.0001589,2]
[419245011,1775039444212,-925.0,0.0001589,2]
[419245012,1775039444222,-925.0,0.0001589,2]
[419245013,1775039444231,-943.71767923,0.0001589,2]
[419245014,1775039444241,-500.0,0.0001589,2]
[419245015,1775039444251,-500.0,0.0001589,2]
[419245016,1775039444262,-500.0,0.0001589,2]
[419245017,1775039444272,-500.0,0.0001589,2]
[419245018,1775039444281,-500.0,0.0001589,2]
[419245019,1775039444292,-490.83014846,0.0001589,2]
[419245020,1775039444302,-500.0,0.0001589,2]
[419245021,1775039444311,-500.0,0.0001589,2]
[419245022,1775039444320,-500.0,0.0001589,2]
[419245023,1775039444330,-500.0,0.0001589,2]
[419245024,1775039444340,-500.0,0.0001589,2]
[419245025,1775039444349,-500.0,0.0001589,2]
[419245026,1775039444673,-500.0,0.0001589,2]
[419245027,1775039444682,-500.0,0.0001589,2]
[419245028,1775039444693,-500.0,0.0001589,2]
[419245029,1775039444704,-500.0,0.0001589,2]
[419245030,1775039444714,-169.33060056,0.0001589,2]
[419245031,1775039444724,-500.0,0.0001589,2]